bitfinex/quotes_BTCUSD_20240911
["timestamp","ask_amount","ask_price","bid_price","bid_amount"]
[1726080953262,1.040945,57594.0,57585.0,0.173655]
[1726080953263,0.173643,57590.0,57585.0,0.173655]
[1726080953515,0.867316,57594.0,57587.0,0.17365]
[1726080953516,0.347265,57593.0,57587.0,0.17365]
[1726080953731,0.1728,57594.0,57586.0,0.0173655]
[1726080953732,0.34643,57594.0,57586.0,0.0173655]
[1726080953949,0.1728,57594.0,57587.0,0.01835949]
[1726080954175,0.1728,57594.0,57579.0,0.347346]
[1726080954404,0.173636,57592.0,57588.0,0.173646]
[1726080954622,0.02722953,57593.0,57590.0,0.173638]
[1726080954863,0.02722953,57593.0,57585.0,0.001]
[1726080954864,0.02722953,57593.0,57592.0,0.173635]
[1726080955081,0.02722953,57593.0,57592.0,0.8855385]
[1726080955300,0.02722953,57593.0,57592.0,1.2328085]
[1726080956409,0.0009906,57604.0,57603.0,0.520806]
[1726080956622,0.0009906,57604.0,57603.0,0.86801]
[1726080956842,0.1717,57605.0,57604.0,0.173599]
[1726080957287,0.1717,57605.0,57587.0,0.01225558]
[1726080957502,0.1701,57593.0,57586.0,0.001638]
[1726080957726,0.00434126,57592.0,57588.0,0.347293]
[1726080957957,0.1701,57593.0,57592.0,0.34727]
[1726080958187,0.1701,57593.0,57592.0,0.520905]
[1726080958402,0.1701,57593.0,57592.0,0.173635]
[1726080958618,0.1701,57593.0,57592.0,0.572997]
[1726080958838,0.19732807,57593.0,57592.0,0.572997]
[1726080959050,0.19732807,57593.0,57592.0,0.520905]
[1726080959268,0.19732807,57593.0,57592.0,0.173635]
[1726080960405,0.19732807,57593.0,57592.0,1.215445]
[1726080960406,0.02722807,57593.0,57592.0,1.215445]
[1726080960647,0.0009945,57598.0,57597.0,0.8681]
[1726080960863,0.1765,57605.0,57604.0,0.520797]
[1726080961090,0.1765,57605.0,57602.0,0.173602]
[1726080961304,0.1765,57605.0,57603.0,0.173599]
[1726080961517,0.20372254,57605.0,57603.0,0.173599]
[1726080961729,0.20372254,57605.0,57602.0,0.347208]
[1726080961968,0.20372254,57605.0,57592.0,0.1215445]
[1726080961969,0.20372254,57605.0,57604.0,0.520797]
[1726080962189,0.1765,57605.0,57604.0,0.173599]
[1726080962646,0.1765,57605.0,57604.0,0.520797]
[1726080962871,0.0009888,57615.0,57614.0,0.173568]
[1726080963097,0.0009888,57615.0,57614.0,0.5727772]
[1726080963316,0.000819,57617.0,57614.0,0.5727772]
[1726080963317,0.000819,57617.0,57616.0,0.173562]
[1726080963534,0.000819,57617.0,57616.0,0.867812]
[1726080963750,0.000819,57617.0,57616.0,1.83950109]
[1726080963970,0.000819,57617.0,57616.0,2.01567064]
[1726080964187,0.000819,57617.0,57616.0,2.00867064]
[1726080964828,0.000819,57617.0,57616.0,2.01267064]
[1726080966377,0.000819,57617.0,57616.0,2.45779564]
[1726080966594,0.000819,57617.0,57616.0,2.61509564]
[1726080966776,0.000819,57617.0,57616.0,2.27297064]
[1726080967016,0.000819,57617.0,57616.0,2.26597064]
[1726080967235,0.000819,57617.0,57616.0,2.61309564]
[1726080967464,0.000819,57617.0,57616.0,2.62609564]
[1726080967690,0.000819,57617.0,57616.0,2.62691982]
[1726080967915,0.000819,57617.0,57616.0,2.81686]
[1726080968378,0.000819,57617.0,57616.0,2.80286]
[1726080968607,0.000819,57617.0,57616.0,2.86286]
[1726080968819,7.321e-05,57625.0,57624.0,0.920692]
[1726080969033,7.321e-05,57625.0,57624.0,1.73347729]
[1726080969285,7.321e-05,57625.0,57624.0,2.18055429]
[1726080969553,7.321e-05,57625.0,57624.0,2.52763129]
[1726080969756,7.321e-05,57625.0,57624.0,2.60803129]
[1726080970239,0.00082,57628.0,57627.0,0.897647]
[1726080970459,0.00082,57628.0,57627.0,1.44387555]
[1726080970677,0.00082,57628.0,57627.0,1.54387555]
[1726080970886,0.00082,57628.0,57627.0,1.89093455]
[1726080971338,0.00082,57628.0,57627.0,2.33649355]
[1726080971848,0.00082,57635.0,57632.0,0.897572]
[1726080972063,0.00082,57635.0,57632.0,2.16272629]
[1726080972288,0.00082,57635.0,57632.0,2.50975529]
[1726080973483,0.00082,57635.0,57634.0,0.897542]
[1726080973699,0.00082,57635.0,57634.0,1.714576]
[1726080973910,0.000822,57645.0,57643.0,0.03]
[1726080974123,0.000822,57645.0,57644.0,1.3531946]
[1726080974351,0.000822,57645.0,57644.0,2.1471086]
[1726080974793,0.000822,57645.0,57644.0,2.4940656]
[1726080975008,0.0078905,57652.0,57651.0,1.14472609]
[1726080975215,0.0078905,57652.0,57651.0,1.6061137]
[1726080975607,0.0078905,57652.0,57651.0,1.9530287]
[1726080976333,0.0078905,57652.0,57651.0,1.95245097]
[1726080976975,0.0078905,57652.0,57651.0,1.60553597]
[1726080977415,0.0078905,57652.0,57651.0,1.95245097]
[1726080978365,0.0078905,57652.0,57651.0,1.96445097]
[1726080978802,0.0078905,57652.0,57651.0,2.52596597]
[1726080979028,0.0078905,57652.0,57651.0,2.53996597]
[1726080979242,0.1800905,57652.0,57651.0,0.88070927]
[1726080979475,0.1800905,57652.0,57651.0,0.86670927]
[1726080979674,0.0078905,57652.0,57651.0,1.50506336]
[1726080979899,0.0078905,57652.0,57651.0,1.6555697]
[1726080980145,0.0078905,57652.0,57651.0,1.6415697]
[1726080980401,0.0078905,57652.0,57651.0,1.9884847]
[1726080981557,0.0078905,57652.0,57651.0,2.0884847]
[1726080981975,0.0078905,57652.0,57651.0,2.0984847]
[1726080982396,0.0078905,57652.0,57651.0,2.0884847]
[1726080982606,0.0078905,57652.0,57651.0,2.1024847]
[1726080983013,0.0078905,57652.0,57651.0,2.0884847]
[1726080983118,0.0078905,57652.0,57651.0,2.1024847]
[1726080983541,0.0078905,57652.0,57651.0,2.0884847]
[1726080983783,0.0078905,57652.0,57651.0,2.1024847]
[1726080984059,0.0087724,57664.0,57663.0,0.867105]
[1726080984301,0.0097623,57664.0,57663.0,1.26580496]
[1726080984523,0.0087724,57664.0,57663.0,0.91896296]
[1726080984730,0.0087724,57664.0,57663.0,0.867105]
[1726080985168,0.0087724,57664.0,57663.0,0.520263]
[1726080985422,0.0087724,57664.0,57663.0,0.867105]
[1726080986155,0.0087724,57664.0,57663.0,0.873105]
[1726080988308,0.0777,57665.0,57664.0,0.86709]
[1726080988481,0.0777,57665.0,57664.0,0.954399]
[1726080988685,0.0777,57665.0,57664.0,1.301235]
[1726080988924,0.0318173,57668.0,57665.0,0.867075]
[1726080989154,0.0318173,57668.0,57665.0,1.560735]
[1726080990527,0.0318173,57668.0,57665.0,1.574735]
[1726080990742,0.0318173,57668.0,57665.0,1.75090455]
[1726080991840,0.0318173,57668.0,57665.0,1.73690455]
[1726080992046,0.0046226,57668.0,57665.0,1.73690455]
[1726080992258,0.0046226,57668.0,57665.0,1.75090455]
[1726080992472,0.0046226,57668.0,57665.0,2.08373455]
[1726080992954,0.0046226,57668.0,57665.0,2.28593455]
[1726080993169,0.0046226,57668.0,57665.0,2.28193455]
[1726080993378,0.000819,57675.0,57672.0,0.03]
[1726080993590,0.000819,57675.0,57674.0,0.79760309]
[1726080993799,0.000819,57675.0,57674.0,2.48560709]
[1726080994015,0.000819,57675.0,57674.0,2.50860709]
[1726080994219,0.000819,57675.0,57674.0,2.85538309]
[1726080994432,0.000819,57675.0,57674.0,3.03155264]
[1726080995046,0.000819,57675.0,57674.0,3.08955264]
[1726080995925,0.000819,57675.0,57674.0,3.00655264]
[1726080996101,0.000819,57675.0,57674.0,2.58287664]
[1726080996578,0.000819,57675.0,57674.0,2.59687664]
[1726080996774,0.000819,57675.0,57674.0,2.56457264]
[1726080996981,0.000819,57675.0,57674.0,2.12579664]
[1726080997128,0.000819,57675.0,57674.0,2.13979664]
[1726080998458,0.000819,57675.0,57674.0,2.12579664]
[1726080998700,0.000819,57675.0,57674.0,1.225412]
[1726080998940,0.000819,57675.0,57674.0,1.224716]
[1726080999165,0.000819,57675.0,57674.0,1.560492]
[1726080999383,0.000819,57675.0,57674.0,1.574492]
[1726080999860,0.000819,57675.0,57674.0,1.560492]
[1726081000099,0.000819,57675.0,57674.0,1.60200584]
[1726081000331,0.000819,57675.0,57674.0,1.59100584]
[1726081002239,0.000819,57675.0,57674.0,1.86844493]
[1726081002459,0.000819,57675.0,57674.0,2.07254493]
[1726081002668,0.000819,57675.0,57674.0,2.06554493]
[1726081003096,0.000819,57675.0,57674.0,1.98244493]
[1726081003324,0.000819,57675.0,57674.0,1.96844493]
[1726081003748,0.000819,57675.0,57674.0,1.98244493]
[1726081004161,0.000819,57675.0,57674.0,1.96844493]
[1726081005593,0.000819,57675.0,57674.0,1.98244493]
[1726081006760,0.000819,57675.0,57674.0,1.96844493]
[1726081007457,0.000819,57675.0,57674.0,2.31522093]
[1726081007893,0.000819,57675.0,57674.0,1.96844493]
[1726081008339,0.000819,57675.0,57674.0,2.04234493]
[1726081008581,0.000819,57675.0,57674.0,2.40312093]
[1726081008784,0.000819,57675.0,57674.0,2.05634493]
[1726081009219,0.000819,57675.0,57674.0,1.98244493]
[1726081009862,0.000819,57675.0,57674.0,2.31522093]
[1726081010070,0.000819,57675.0,57674.0,1.96844493]
[1726081010279,0.000819,57675.0,57674.0,1.90617356]
[1726081011235,0.000819,57675.0,57674.0,1.52888372]
[1726081011457,0.000819,57675.0,57674.0,1.42888372]
[1726081012301,0.000819,57675.0,57674.0,1.85109171]
[1726081015831,0.079119,57675.0,57674.0,1.50431571]
[1726081016061,0.692274,57675.0,57674.0,0.014]
[1726081016315,0.71946291,57675.0,57674.0,0.014]
[1726081016549,0.173403,57669.0,57668.0,0.001636]
[1726081016761,0.1717,57669.0,57668.0,0.001636]
[1726081016993,0.1717,57669.0,57668.0,0.175042]
[1726081017227,0.1717,57669.0,57668.0,0.5395218]
[1726081017893,0.1717,57669.0,57668.0,0.175042]
[1726081018098,0.1717,57669.0,57668.0,0.868666]
[1726081018349,0.1004921,57669.0,57668.0,1.215478]
[1726081018594,0.1004921,57669.0,57668.0,0.002636]
[1726081018831,0.1004921,57669.0,57668.0,0.175042]
[1726081019251,0.1004921,57669.0,57668.0,0.181042]
[1726081019460,0.1004921,57669.0,57668.0,0.175042]
[1726081019751,0.1004921,57669.0,57668.0,0.001636]
[1726081019977,0.3669951,57669.0,57668.0,0.001636]
[1726081020211,0.7138011,57669.0,57668.0,0.001636]
[1726081020872,1.4304131,57669.0,57668.0,0.001636]
[1726081021091,1.81101281,57669.0,57668.0,0.002636]
[1726081021337,1.80701281,57669.0,57668.0,0.001636]
[1726081021571,1.80701281,57669.0,57668.0,0.002636]
[1726081021572,1.5344131,57669.0,57668.0,0.002636]
[1726081022003,1.505221,57669.0,57668.0,0.001636]
[1726081022453,1.505221,57669.0,57668.0,0.002636]
[1726081022454,1.507221,57669.0,57668.0,0.002636]
[1726081022721,1.503221,57669.0,57668.0,0.001636]
[1726081022958,1.503221,57669.0,57664.0,0.001636]
[1726081022959,0.867075,57665.0,57664.0,0.001636]
[1726081023191,1.69230471,57665.0,57664.0,0.001636]
[1726081023402,1.78540471,57665.0,57664.0,0.001636]
[1726081023823,1.78740471,57665.0,57664.0,0.001636]
[1726081024062,1.510805,57665.0,57664.0,0.001636]
[1726081024475,1.510805,57665.0,57651.0,0.001638]
[1726081024476,0.17345,57654.0,57651.0,0.001638]
[1726081024695,0.002,57659.0,57651.0,0.001638]
[1726081024696,0.520363,57652.0,57651.0,0.001638]
[1726081024900,0.252254,57652.0,57651.0,0.001638]
[1726081025129,1.06650936,57652.0,57651.0,0.001638]
[1726081025357,1.04350936,57652.0,57651.0,0.001638]
[1726081025570,1.04350936,57652.0,57651.0,0.007638]
[1726081025995,1.04350936,57652.0,57651.0,0.001638]
[1726081026227,1.04350936,57652.0,57651.0,0.002638]
[1726081026228,1.54162195,57652.0,57651.0,0.002638]
[1726081026487,0.345411,57633.0,57624.0,0.0038036]
[1726081026690,1.34339574,57633.0,57624.0,0.0038036]
[1726081026907,1.82041874,57633.0,57624.0,0.0038036]
[1726081027124,1.062577,57625.0,57624.0,0.0038036]
[1726081027336,1.411648,57625.0,57624.0,0.0038036]
[1726081027541,1.411648,57625.0,57610.0,0.001636]
[1726081027542,0.520732,57611.0,57610.0,0.001636]
[1726081027763,0.17357,57614.0,57610.0,0.001636]
[1726081027982,0.0787,57616.0,57615.0,0.173565]
[1726081028202,0.0787,57616.0,57615.0,0.520696]
[1726081028859,0.10591593,57616.0,57615.0,0.520696]
[1726081029062,0.10591593,57616.0,57610.0,0.001636]
[1726081029063,0.173574,57613.0,57610.0,0.001636]
[1726081029277,0.20461593,57616.0,57610.0,0.001636]
[1726081029509,0.17357,57614.0,57610.0,0.001636]
[1726081029722,0.173572,57613.0,57610.0,0.001636]
[1726081030207,0.173569,57614.0,57610.0,0.001636]
[1726081030500,0.21061593,57616.0,57610.0,0.001636]
[1726081030699,0.20895593,57616.0,57610.0,0.001636]
[1726081030906,0.890887,57611.0,57610.0,0.001636]
[1726081031117,1.37188671,57611.0,57610.0,0.001636]
[1726081031324,1.442509,57608.0,57607.0,0.0038036]
[1726081032163,1.444509,57608.0,57607.0,0.0038036]
[1726081032633,0.370987,57608.0,57607.0,0.0038036]
[1726081033112,0.1744,57608.0,57607.0,0.0038036]
[1726081033333,0.7225018,57608.0,57607.0,0.0038036]
[1726081033558,0.54377,57607.0,57606.0,0.001636]
[1726081033980,0.023,57607.0,57606.0,0.001636]
[1726081034190,0.1744,57608.0,57606.0,0.001636]
[1726081034388,0.0744,57608.0,57606.0,0.001636]
[1726081035021,0.92529045,57607.0,57606.0,0.001636]
[1726081035289,1.55107016,57607.0,57606.0,0.001636]
[1726081035489,2.05825016,57607.0,57606.0,0.001636]
[1726081036556,0.891145,57594.0,57586.0,0.001638]
[1726081036827,0.543887,57594.0,57586.0,0.001638]
[1726081037016,0.543887,57594.0,57586.0,0.17529]
[1726081037212,0.57111743,57594.0,57587.0,0.173649]
[1726081037469,0.02723043,57594.0,57587.0,0.347295]
[1726081037707,0.02723043,57594.0,57593.0,0.522534]
[1726081037957,0.02723043,57594.0,57593.0,0.94037176]
[1726081038241,0.02723043,57594.0,57593.0,0.869798]
[1726081038661,0.02723043,57594.0,57593.0,1.217062]
[1726081039517,0.07874051,57609.0,57593.0,0.001638]
[1726081039731,0.07874051,57609.0,57608.0,0.173587]
[1726081039942,0.0744,57609.0,57593.0,0.001638]
[1726081040159,0.00434047,57608.0,57606.0,0.17359]
[1726081040373,0.10162231,57609.0,57604.0,0.347192]
[1726081040582,0.10162231,57609.0,57608.0,0.173587]
[1726081041041,0.10162231,57609.0,57608.0,0.520761]
[1726081041480,0.02722231,57609.0,57608.0,0.867935]
[1726081041738,0.02722231,57609.0,57608.0,0.520761]
[1726081041982,0.247964,57616.0,57611.0,0.173577]
[1726081042247,0.0744,57616.0,57595.0,0.347248]
[1726081042456,0.03,57623.0,57595.0,0.347248]
[1726081042457,0.0976,57614.0,57613.0,0.347143]
[1726081042679,0.00433924,57623.0,57621.0,0.173546]
[1726081042918,0.00433924,57623.0,57619.0,0.347104]
[1726081042919,0.0976,57624.0,57619.0,0.520656]
[1726081043184,0.0976,57624.0,57620.0,0.173549]
[1726081043408,0.0976,57624.0,57619.0,0.347104]
[1726081043409,0.0976,57624.0,57621.0,0.173547]
[1726081044568,0.0976,57624.0,57619.0,0.32968781]
[1726081044835,0.00433919,57623.0,57612.0,0.173572]
[1726081045056,0.173572,57613.0,57608.0,0.173586]
[1726081045307,0.023,57616.0,57597.0,0.0775]
[1726081045308,0.173578,57611.0,57606.0,0.173591]
[1726081045509,0.07873996,57612.0,57606.0,0.347184]
[1726081045762,0.0744,57612.0,57611.0,0.173577]
[1726081045972,0.0922,57615.0,57597.0,0.1768]
[1726081046181,0.00434024,57614.0,57612.0,0.173574]
[1726081046388,0.0922,57615.0,57612.0,0.173574]
[1726081046867,0.0922,57615.0,57610.0,0.347159]
[1726081047089,0.03,57600.0,57586.0,0.001638]
[1726081047318,0.173629,57594.0,57587.0,0.51989914]
[1726081047570,0.173629,57594.0,57586.0,0.001638]
[1726081047571,0.520887,57594.0,57586.0,0.001638]
[1726081047788,0.173629,57594.0,57586.0,0.001638]
[1726081048001,0.17797063,57594.0,57589.0,0.173642]
[1726081048217,0.20085791,57594.0,57588.0,0.173645]
[1726081048428,0.20085791,57594.0,57589.0,0.173644]
[1726081048632,0.02722891,57594.0,57587.0,0.347298]
[1726081048848,0.02722891,57594.0,57590.0,0.1774436]
[1726081049029,0.02722891,57594.0,57590.0,0.3510836]
[1726081049234,0.02722891,57594.0,57590.0,0.1774436]
[1726081049693,0.02722891,57594.0,57590.0,0.0038036]
[1726081049913,0.02722891,57594.0,57591.0,0.173636]
[1726081050137,0.02722891,57594.0,57590.0,0.0038036]
[1726081050342,0.20085791,57594.0,57590.0,0.0038036]
[1726081051386,0.02722891,57594.0,57590.0,0.1774436]
[1726081051588,0.02722891,57594.0,57593.0,0.522534]
[1726081051800,0.1676,57599.0,57594.0,0.173626]
[1726081051801,0.0739,57599.0,57594.0,0.173626]
[1726081052055,0.16,57606.0,57593.0,0.348902]
[1726081052056,0.000819,57608.0,57607.0,0.52077]
[1726081052293,0.000819,57608.0,57607.0,1.274807]
[1726081052536,0.000819,57608.0,57607.0,1.366607]
[1726081053460,0.000819,57608.0,57607.0,1.30693]
[1726081053917,0.000819,57608.0,57607.0,0.95975]
[1726081054141,0.000819,57608.0,57607.0,0.86795]
[1726081055274,0.000819,57608.0,57603.0,0.3472]
[1726081055512,0.000819,57608.0,57599.0,0.0758]
[1726081055513,0.000819,57608.0,57607.0,0.17359]
[1726081055735,0.000819,57608.0,57605.0,0.34719]
[1726081055995,0.000819,57608.0,57607.0,0.17359]
[1726081056697,0.000819,57608.0,57604.0,0.347193]
[1726081056915,0.000819,57608.0,57605.0,0.173593]
[1726081057159,0.000819,57608.0,57607.0,0.17359]
[1726081059022,0.000819,57608.0,57605.0,0.173593]
[1726081059311,0.000819,57608.0,57590.0,0.0038036]
[1726081059312,0.347258,57594.0,57590.0,0.0038036]
[1726081059549,0.173621,57597.0,57590.0,0.0038036]
[1726081059788,0.347242,57597.0,57590.0,0.0038036]
[1726081060024,0.02722764,57597.0,57591.0,0.347276]
[1726081060257,0.347247,57596.0,57590.0,0.0038036]
[1726081060491,0.173626,57596.0,57592.0,0.173634]
[1726081060726,0.520887,57594.0,57590.0,0.0038036]
[1726081060962,0.596087,57594.0,57590.0,0.0038036]
[1726081062116,0.596087,57594.0,57586.0,0.001638]
[1726081062117,0.347265,57593.0,57586.0,0.001638]
[1726081062382,0.520909,57592.0,57587.0,0.173648]
[1726081062624,0.173636,57592.0,57588.0,0.173646]
[1726081062853,0.86825,57587.0,57586.0,0.001638]
[1726081063072,1.61584971,57587.0,57586.0,0.001638]
[1726081063305,2.23046744,57587.0,57586.0,0.001638]
[1726081063541,2.29140164,57587.0,57586.0,0.001638]
[1726081063773,0.97053,57575.0,57574.0,0.001636]
[1726081063990,0.96853,57575.0,57574.0,0.001636]
[1726081064210,0.623158,57575.0,57574.0,0.001636]
[1726081064464,0.273786,57575.0,57574.0,0.001636]
[1726081064683,0.623158,57575.0,57574.0,0.001636]
[1726081064932,0.621158,57575.0,57574.0,0.001636]
[1726081065380,0.173686,57575.0,57574.0,0.001636]
[1726081065610,0.347355,57578.0,57574.0,0.001636]
[1726081066035,0.00434277,57579.0,57574.0,0.001636]
[1726081066036,0.173686,57575.0,57574.0,0.001636]
[1726081066511,0.521044,57577.0,57574.0,0.001636]
[1726081066746,0.02723852,57578.0,57574.0,0.001636]
[1726081066966,0.02723852,57578.0,57577.0,0.52104]
[1726081067183,0.02723852,57578.0,57577.0,1.21576]
[1726081068538,0.51989914,57592.0,57574.0,0.001636]
[1726081068539,0.39235563,57593.0,57575.0,0.27659971]
[1726081068743,0.347242,57597.0,57590.0,0.173641]
[1726081068744,0.51989914,57592.0,57590.0,0.173641]
[1726081068995,0.347236,57598.0,57576.0,0.39362793]
[1726081069204,0.02723013,57589.0,57588.0,0.520941]
[1726081069619,0.02723013,57589.0,57588.0,0.9550586]
[1726081069824,0.02723013,57589.0,57588.0,1.3023526]
[1726081070048,0.02723013,57589.0,57588.0,0.9550586]
[1726081070297,0.02723013,57589.0,57588.0,0.868235]
[1726081072108,0.02723013,57589.0,57587.0,0.0792]
[1726081072109,0.05100032,57601.0,57587.0,0.0792]
[1726081072364,0.173608,57601.0,57594.0,0.347252]
[1726081072577,0.173612,57600.0,57596.0,0.173621]
[1726081073283,0.173612,57600.0,57593.0,0.17363]
[1726081073524,0.173606,57602.0,57595.0,0.173624]
[1726081073752,0.347202,57604.0,57595.0,0.173624]
[1726081073753,0.173609,57601.0,57595.0,0.173624]
[1726081073994,0.173611,57600.0,57593.0,0.520889]
[1726081074223,0.173611,57600.0,57592.0,0.173633]
[1726081074224,0.173617,57598.0,57592.0,0.173633]
[1726081074456,0.57205563,57606.0,57597.0,0.173619]
[1726081074457,0.3472,57604.0,57597.0,0.173619]
[1726081074687,0.173603,57603.0,57597.0,0.173619]
[1726081074932,0.49235563,57606.0,57588.0,0.096]
[1726081075128,0.02722655,57603.0,57600.0,0.173609]
[1726081075599,0.02722655,57603.0,57588.0,0.096]
[1726081075600,0.02722655,57603.0,57593.0,0.347262]
[1726081075802,0.02722655,57603.0,57594.0,0.347257]
[1726081076014,0.173606,57602.0,57597.0,0.173618]
[1726081076220,0.173611,57600.0,57595.0,0.173623]
[1726081076429,0.347213,57602.0,57597.0,0.173618]
[1726081076643,0.173608,57601.0,57597.0,0.173618]
[1726081076854,0.347246,57596.0,57588.0,0.096]
[1726081077060,0.173615,57599.0,57595.0,0.173625]
[1726081077266,0.00082,57600.0,57588.0,0.096]
[1726081077267,0.347235,57598.0,57588.0,0.096]
[1726081077476,0.347251,57596.0,57589.0,0.347282]
[1726081077680,0.173621,57597.0,57592.0,0.173635]
[1726081077897,0.173622,57597.0,57593.0,0.173631]
[1726081078106,0.173618,57598.0,57593.0,0.347264]
[1726081078313,0.173626,57595.0,57591.0,0.173635]
[1726081078516,0.37446004,57599.0,57592.0,0.347267]
[1726081078728,0.20084304,57599.0,57595.0,0.173625]
[1726081078935,0.173617,57598.0,57595.0,0.173625]
[1726081079558,0.20084204,57599.0,57594.0,0.347254]
[1726081079765,0.02722704,57599.0,57596.0,0.173621]
[1726081079972,0.20084204,57599.0,57594.0,0.347254]
[1726081080178,0.20084204,57599.0,57595.0,0.173625]
[1726081080394,0.02722704,57599.0,57595.0,0.347251]
[1726081080619,0.000819,57608.0,57596.0,0.2041251]
[1726081080839,0.000819,57608.0,57607.0,0.52077]
[1726081081285,0.000819,57608.0,57596.0,0.1694]
[1726081081286,0.000819,57608.0,57598.0,0.27659971]
[1726081081495,0.000819,57608.0,57607.0,0.17359]
[1726081081721,0.000819,57608.0,57607.0,0.52077]
[1726081082859,0.000819,57608.0,57605.0,0.173595]
[1726081083083,0.000819,57608.0,57602.0,0.347207]
[1726081083293,0.000819,57608.0,57603.0,0.0440807]
[1726081083511,0.000819,57608.0,57607.0,0.52077]
[1726081083753,0.000819,57608.0,57607.0,0.17359]
[1726081083975,0.000819,57608.0,57607.0,0.86795]
[1726081084217,0.000819,57608.0,57606.0,0.173592]
[1726081084444,0.000819,57608.0,57605.0,0.347192]
[1726081084445,0.000819,57608.0,57607.0,0.17359]
[1726081084664,0.000819,57608.0,57607.0,1.00023627]
[1726081085303,0.000819,57608.0,57607.0,1.34741627]
[1726081085517,0.000819,57608.0,57607.0,1.44101627]
[1726081085750,0.000819,57608.0,57607.0,1.78819627]
[1726081087781,0.000819,57608.0,57607.0,1.88819627]
[1726081088053,0.000819,57608.0,57607.0,1.54101627]
[1726081088260,0.000819,57608.0,57607.0,1.19383627]
[1726081088473,0.000819,57608.0,57607.0,1.54101627]
[1726081088887,0.02803451,57608.0,57607.0,1.54101627]
[1726081089134,0.39235563,57622.0,57618.0,0.520669]
[1726081089351,0.347029,57632.0,57618.0,0.520669]
[1726081089352,0.02721581,57627.0,57618.0,1.31818171]
[1726081089576,0.02721581,57627.0,57618.0,1.66529471]
[1726081090861,0.02721581,57627.0,57618.0,2.01240771]
[1726081091101,0.02721581,57627.0,57618.0,1.66529471]
[1726081091323,0.02721581,57627.0,57618.0,1.83182418]
[1726081091806,0.02721581,57627.0,57618.0,0.51388547]
[1726081092039,0.39235563,57629.0,57618.0,0.694469]
[1726081092287,0.39235563,57629.0,57618.0,1.66529471]
[1726081095115,0.39235563,57629.0,57618.0,2.01240771]
[1726081095609,0.39235563,57629.0,57618.0,2.04240771]
[1726081095874,0.39235563,57629.0,57618.0,2.48952071]
[1726081096127,0.39235563,57629.0,57628.0,1.32043171]
[1726081096368,0.39235563,57629.0,57628.0,1.66748471]
[1726081096593,0.0038036,57633.0,57632.0,0.867572]
[1726081096813,0.0038036,57633.0,57632.0,1.214601]
[1726081098711,0.0038036,57633.0,57632.0,0.867572]
[1726081098940,0.0038036,57633.0,57632.0,0.68728487]
[1726081099175,0.0038036,57633.0,57631.0,0.173517]
[1726081099409,0.0038036,57633.0,57629.0,0.347047]
[1726081099674,0.0038036,57633.0,57628.0,0.1762]
[1726081100163,0.0038036,57633.0,57630.0,0.173518]
[1726081100405,0.0038036,57633.0,57619.0,0.0999]
[1726081100640,0.173527,57628.0,57624.0,0.173538]
[1726081100852,0.173527,57628.0,57622.0,0.40941246]
[1726081100853,0.173534,57626.0,57622.0,0.23586946]
[1726081101078,0.173529,57628.0,57624.0,0.173538]
[1726081101360,0.02721142,57630.0,57618.0,0.001638]
[1726081101572,0.02721142,57630.0,57618.0,0.0465054]
[1726081101573,0.347088,57623.0,57618.0,0.0465054]
[1726081101803,0.173544,57622.0,57618.0,0.2200614]
[1726081102054,0.347089,57622.0,57618.0,0.001638]
[1726081102295,0.347088,57623.0,57618.0,0.001638]
[1726081102522,0.173553,57620.0,57618.0,0.001638]
[1726081102786,0.173547,57622.0,57618.0,0.001638]
[1726081103008,0.347049,57629.0,57619.0,0.347107]
[1726081103244,0.173536,57625.0,57619.0,0.347107]
[1726081103534,0.0066226,57633.0,57625.0,0.173534]
[1726081103535,0.34703,57632.0,57625.0,0.173534]
[1726081103794,0.173523,57629.0,57621.0,0.0927]
[1726081104038,0.173527,57628.0,57624.0,0.173537]
[1726081104529,0.347042,57630.0,57622.0,0.173542]
[1726081104771,0.173527,57628.0,57623.0,0.17354]
[1726081104984,0.173529,57627.0,57621.0,0.0927]
[1726081105231,0.347043,57630.0,57622.0,0.347087]
[1726081105513,0.173526,57628.0,57624.0,0.173537]
[1726081106252,0.173526,57628.0,57618.0,0.001638]
[1726081106253,0.08443859,57628.0,57618.0,0.001638]
[1726081106487,0.52066,57619.0,57618.0,0.001638]
[1726081106766,0.173553,57619.0,57618.0,0.001638]
[1726081107242,0.867767,57619.0,57618.0,0.001638]
[1726081107461,0.0964,57622.0,57618.0,0.001638]
[1726081107693,0.17353,57627.0,57619.0,0.347107]
[1726081107940,0.347043,57630.0,57620.0,0.0348745]
[1726081108192,0.347059,57627.0,57621.0,0.173546]
[1726081108437,0.173536,57625.0,57621.0,0.173546]
[1726081108699,0.173536,57625.0,57618.0,0.348751]
[1726081108700,0.347072,57625.0,57618.0,0.001638]
[1726081108924,0.347072,57625.0,57620.0,0.17355]
[1726081108925,0.173539,57624.0,57620.0,0.17355]
[1726081109181,0.347059,57628.0,57621.0,0.173547]
[1726081109408,0.173539,57624.0,57620.0,0.17355]
[1726081109642,0.173533,57626.0,57620.0,0.347101]
[1726081109886,0.4317506,57633.0,57621.0,0.35719971]
[1726081110141,0.4317506,57633.0,57623.0,0.173539]
[1726081110142,0.17353,57627.0,57623.0,0.173539]
[1726081110582,0.347051,57629.0,57622.0,0.347089]
[1726081110813,0.52066,57619.0,57618.0,0.001638]
[1726081111321,0.943467,57619.0,57618.0,0.001638]
[1726081111552,1.290574,57619.0,57618.0,0.001638]
[1726081111783,0.97068454,57619.0,57618.0,0.001638]
[1726081111985,1.290574,57619.0,57618.0,0.001638]
[1726081112236,0.943467,57619.0,57618.0,0.001638]
[1726081113079,1.290574,57619.0,57618.0,0.001638]
[1726081113289,0.943467,57619.0,57618.0,0.001638]
[1726081114237,0.944286,57619.0,57618.0,0.001638]
[1726081114666,1.291393,57619.0,57618.0,0.001638]
[1726081114899,1.31861097,57619.0,57618.0,0.001638]
[1726081115109,0.97150397,57619.0,57618.0,0.001638]
[1726081115495,0.97350397,57619.0,57618.0,0.001638]
[1726081115716,1.31861097,57619.0,57618.0,0.001638]